[Event "Early-Titled-Tuesday-Blitz-March-19-2024"]
[Site "Chess.com"]
[Date "2024.03.19"]
[Round "9"]
[White "Chessmissile07"]
[Black "MightyGMpretender"]
[Result "1-0"]
[WhiteElo "2939"]
[BlackElo "2798"]
[TimeControl "180+1"]
[EndTime "9:45:58 PDT"]
[Termination "Chessmissile07 won on time"]

1. a3 {[%clk 0:03:00.9]} 1... Nf6 {[%clk 0:02:56.3]} 2. c4 {[%clk 0:02:58.3]}
2... g6 {[%clk 0:02:56.4]} 3. Nf3 {[%clk 0:02:55.2]} 3... Bg7 {[%clk 0:02:57]}
4. b4 {[%clk 0:02:55.8]} 4... O-O {[%clk 0:02:56.6]} 5. Bb2 {[%clk 0:02:56.1]}
5... d6 {[%clk 0:02:49]} 6. e3 {[%clk 0:02:55.5]} 6... e5 {[%clk 0:02:48.6]} 7.
Be2 {[%clk 0:02:52.3]} 7... Nbd7 {[%clk 0:02:47.3]} 8. O-O {[%clk 0:02:51.8]}
8... b6 {[%clk 0:02:28.3]} 9. Nc3 {[%clk 0:02:50.5]} 9... Bb7 {[%clk 0:02:28]}
10. d3 {[%clk 0:02:48.8]} 10... Qe7 {[%clk 0:02:11.3]} 11. Nd2 {[%clk 0:02:48]}
11... c6 {[%clk 0:02:09.8]} 12. b5 {[%clk 0:02:33.1]} 12... c5 {[%clk
0:01:59.4]} 13. Bf3 {[%clk 0:02:30.3]} 13... Rfb8 {[%clk 0:01:41.8]} 14. Bxb7
{[%clk 0:02:28.6]} 14... Rxb7 {[%clk 0:01:42.1]} 15. Qf3 {[%clk 0:02:28.6]}
15... Nf8 {[%clk 0:01:41.7]} 16. a4 {[%clk 0:02:26.4]} 16... a5 {[%clk
0:01:35.4]} 17. Nde4 {[%clk 0:02:16]} 17... Ne8 {[%clk 0:01:11.9]} 18. Nd5
{[%clk 0:02:10.4]} 18... Qd7 {[%clk 0:01:08.7]} 19. Ng3 {[%clk 0:01:38.8]} 19...
Raa7 {[%clk 0:01:03.2]} 20. e4 {[%clk 0:01:25.8]} 20... Ne6 {[%clk 0:01:00.2]}
21. h4 {[%clk 0:01:23.1]} 21... h5 {[%clk 0:00:58.4]} 22. Ne2 {[%clk 0:01:21.8]}
22... N8c7 {[%clk 0:00:50.5]} 23. Nec3 {[%clk 0:00:58.7]} 23... Nd4 {[%clk
0:00:48.2]} 24. Qd1 {[%clk 0:00:59.2]} 24... Nce6 {[%clk 0:00:41.8]} 25. Ne2
{[%clk 0:00:56.7]} 25... Ra8 {[%clk 0:00:35.2]} 26. Nxd4 {[%clk 0:00:28.9]}
26... cxd4 {[%clk 0:00:35.2]} 27. Ba3 {[%clk 0:00:29.5]} 27... Rf8 {[%clk
0:00:30.6]} 28. Qf3 {[%clk 0:00:23.5]} 28... f5 {[%clk 0:00:16.2]} 29. exf5
{[%clk 0:00:19]} 29... Rxf5 {[%clk 0:00:16.5]} 30. Qg3 {[%clk 0:00:19.3]} 30...
Kh7 {[%clk 0:00:14]} 31. Rae1 {[%clk 0:00:18.7]} 31... Nf4 {[%clk 0:00:11.9]}
32. Nxf4 {[%clk 0:00:16.7]} 32... Rxf4 {[%clk 0:00:12.3]} 33. Bc1 {[%clk
0:00:15.4]} 33... Rf5 {[%clk 0:00:08.1]} 34. f4 {[%clk 0:00:13]} 34... Rb8
{[%clk 0:00:08.7]} 35. fxe5 {[%clk 0:00:12]} 35... Bxe5 {[%clk 0:00:09.4]} 36.
Bf4 {[%clk 0:00:08.1]} 36... Rbf8 {[%clk 0:00:08.6]} 37. Bxe5 {[%clk 0:00:08.6]}
37... Rxf1+ {[%clk 0:00:08.7]} 38. Rxf1 {[%clk 0:00:08.6]} 38... Rxf1+ {[%clk
0:00:08.1]} 39. Kxf1 {[%clk 0:00:09.5]} 39... dxe5 {[%clk 0:00:08.3]} 40. Qxe5
{[%clk 0:00:08]} 40... Qg4 {[%clk 0:00:08.8]} 41. Qe7+ {[%clk 0:00:06.5]} 41...
Kg8 {[%clk 0:00:08.8]} 42. Qd8+ {[%clk 0:00:06.5]} 42... Kh7 {[%clk 0:00:08.8]}
43. Qc7+ {[%clk 0:00:06.3]} 43... Kh8 {[%clk 0:00:08.2]} 44. Qb8+ {[%clk
0:00:03.2]} 44... Kh7 {[%clk 0:00:07.9]} 45. Qb7+ {[%clk 0:00:03.6]} 45... Kh6
{[%clk 0:00:08]} 46. Qe4 {[%clk 0:00:04.2]} 46... Qd1+ {[%clk 0:00:06.7]} 47.
Kf2 {[%clk 0:00:04.8]} 47... Qd2+ {[%clk 0:00:06.9]} 48. Kg3 {[%clk 0:00:05.2]}
48... Qc3 {[%clk 0:00:06.5]} 49. Kf4 {[%clk 0:00:04.9]} 49... Qc1+ {[%clk
0:00:06.3]} 50. Ke5 {[%clk 0:00:05.2]} 50... Qa1 {[%clk 0:00:06.4]} 51. Kf6
{[%clk 0:00:04.5]} 51... Qf1+ {[%clk 0:00:05.9]} 52. Ke6 {[%clk 0:00:04.3]}
52... Qa1 {[%clk 0:00:05.8]} 53. Qe5 {[%clk 0:00:04.6]} 53... Kh7 {[%clk
0:00:05.9]} 54. Kf7 {[%clk 0:00:04.6]} 54... Qf1+ {[%clk 0:00:05.4]} 55. Qf6
{[%clk 0:00:05.1]} 1-0

[Event "Early-Titled-Tuesday-Blitz-March-19-2024"]
[Site "Chess.com"]
[Date "2024.03.19"]
[Round "9"]
[White "NowInChess"]
[Black "Al_Shima"]
[Result "1-0"]
[WhiteElo "2281"]
[BlackElo "2445"]
[TimeControl "180+1"]
[EndTime "9:46:02 PDT"]
[Termination "NowInChess won by checkmate"]

1. e4 {[%clk 0:03:00.9]} 1... c6 {[%clk 0:02:58.4]} 2. d4 {[%clk 0:03:00.7]}
2... d5 {[%clk 0:02:59]} 3. exd5 {[%clk 0:03:01.5]} 3... cxd5 {[%clk 0:02:59.4]}
4. c4 {[%clk 0:03:02.4]} 4... Nc6 {[%clk 0:02:59.7]} 5. Nc3 {[%clk 0:03:01.5]}
5... Nf6 {[%clk 0:02:59.4]} 6. Bf4 {[%clk 0:03:01.1]} 6... e6 {[%clk 0:02:57.2]}
7. c5 {[%clk 0:03:00.6]} 7... Be7 {[%clk 0:02:56.6]} 8. Nf3 {[%clk 0:03:00.6]}
8... O-O {[%clk 0:02:56.8]} 9. Bb5 {[%clk 0:03:00.8]} 9... Ne4 {[%clk
0:02:57.1]} 10. O-O {[%clk 0:02:53.8]} 10... Bd7 {[%clk 0:02:55.2]} 11. Re1
{[%clk 0:02:52.5]} 11... Nxc3 {[%clk 0:02:54.6]} 12. bxc3 {[%clk 0:02:52.4]}
12... Bf6 {[%clk 0:02:54.8]} 13. Bxc6 {[%clk 0:02:51.4]} 13... Bxc6 {[%clk
0:02:55.7]} 14. Ne5 {[%clk 0:02:50.6]} 14... Bxe5 {[%clk 0:02:55.1]} 15. Bxe5
{[%clk 0:02:49.3]} 15... f6 {[%clk 0:02:55.7]} 16. Bd6 {[%clk 0:02:41.8]} 16...
Re8 {[%clk 0:02:49.4]} 17. Re3 {[%clk 0:02:36.5]} 17... Qd7 {[%clk 0:02:33.5]}
18. Qg4 {[%clk 0:02:32.8]} 18... Qf7 {[%clk 0:02:30.5]} 19. Rae1 {[%clk
0:02:28.9]} 19... Bd7 {[%clk 0:02:30.4]} 20. Qh4 {[%clk 0:02:04.7]} 20... b6
{[%clk 0:01:46]} 21. f4 {[%clk 0:01:52.4]} 21... bxc5 {[%clk 0:01:37.2]} 22.
Bxc5 {[%clk 0:01:48.5]} 22... Rab8 {[%clk 0:01:32.8]} 23. Bxa7 {[%clk
0:01:45.9]} 23... Ra8 {[%clk 0:01:28.9]} 24. Bc5 {[%clk 0:01:38.6]} 24... Rxa2
{[%clk 0:01:26.9]} 25. Rh3 {[%clk 0:01:29.2]} 25... h6 {[%clk 0:01:16.9]} 26.
Rg3 {[%clk 0:01:24.7]} 26... Kh7 {[%clk 0:01:14.6]} 27. Rge3 {[%clk 0:01:11.9]}
27... Rb8 {[%clk 0:01:09.7]} 28. R3e2 {[%clk 0:01:08.3]} 28... Rbb2 {[%clk
0:01:07.1]} 29. Rxb2 {[%clk 0:01:07.3]} 29... Rxb2 {[%clk 0:01:08]} 30. Qg3
{[%clk 0:01:00.5]} 30... Qh5 {[%clk 0:00:53.5]} 31. h3 {[%clk 0:00:54]} 31...
Qf5 {[%clk 0:00:40.9]} 32. Kh2 {[%clk 0:00:46.7]} 32... Qc2 {[%clk 0:00:38]} 33.
Ra1 {[%clk 0:00:41]} 33... Rb7 {[%clk 0:00:18.9]} 34. Bb4 {[%clk 0:00:34.1]}
34... Be8 {[%clk 0:00:17.2]} 35. Ra8 {[%clk 0:00:31.7]} 35... Bg6 {[%clk
0:00:14.8]} 36. h4 {[%clk 0:00:24.5]} 36... h5 {[%clk 0:00:11.9]} 37. Ra1 {[%clk
0:00:20.6]} 37... Be4 {[%clk 0:00:08.3]} 38. Ra8 {[%clk 0:00:18.4]} 38... Qe2
{[%clk 0:00:04.1]} 39. Ra1 {[%clk 0:00:16.8]} 39... Rc7 {[%clk 0:00:02.9]} 40.
Re1 {[%clk 0:00:15.6]} 40... Qc4 {[%clk 0:00:02.5]} 41. Qf2 {[%clk 0:00:12.8]}
41... Bf5 {[%clk 0:00:02.4]} 42. Qg3 {[%clk 0:00:12.7]} 42... Bg4 {[%clk
0:00:03]} 43. Ra1 {[%clk 0:00:11.3]} 43... Rb7 {[%clk 0:00:02.7]} 44. Qe3 {[%clk
0:00:10.8]} 44... Rc7 {[%clk 0:00:03]} 45. Rc1 {[%clk 0:00:09.4]} 45... Ra7
{[%clk 0:00:02.6]} 46. Re1 {[%clk 0:00:08.9]} 46... Ra2 {[%clk 0:00:02.7]} 47.
Rg1 {[%clk 0:00:08.4]} 47... Bf5 {[%clk 0:00:02.9]} 48. Qg3 {[%clk 0:00:07.8]}
48... Be4 {[%clk 0:00:02.8]} 49. Bf8 {[%clk 0:00:07.6]} 49... g6 {[%clk
0:00:02.7]} 50. Be7 {[%clk 0:00:06.9]} 50... Kg7 {[%clk 0:00:02.9]} 51. Bxf6+
{[%clk 0:00:06.1]} 51... Kxf6 {[%clk 0:00:02.9]} 52. Qg5+ {[%clk 0:00:06.3]}
52... Kf7 {[%clk 0:00:03.4]} 53. Qh6 {[%clk 0:00:06.4]} 53... Qe2 {[%clk
0:00:03.2]} 54. Qh7+ {[%clk 0:00:06.2]} 54... Kf6 {[%clk 0:00:03]} 55. Qh8+
{[%clk 0:00:06.2]} 55... Ke7 {[%clk 0:00:03.5]} 56. Qg7+ {[%clk 0:00:06.4]}
56... Kd6 {[%clk 0:00:04]} 57. Qf8+ {[%clk 0:00:06.5]} 57... Kc6 {[%clk
0:00:04.1]} 58. Qe8+ {[%clk 0:00:06.7]} 58... Kb6 {[%clk 0:00:04]} 59. Qb8+
{[%clk 0:00:06.9]} 59... Ka5 {[%clk 0:00:02.9]} 60. Qa7+ {[%clk 0:00:07.1]}
60... Kb5 {[%clk 0:00:03.4]} 61. Qc5+ {[%clk 0:00:07.3]} 61... Ka4 {[%clk
0:00:03.3]} 62. Qb4# {[%clk 0:00:07.8]} 1-0

[Event "Early-Titled-Tuesday-Blitz-March-19-2024"]
[Site "Chess.com"]
[Date "2024.03.19"]
[Round "9"]
[White "CarlosjPineror"]
[Black "Kazmin_Semyon"]
[Result "0-1"]
[WhiteElo "2691"]
[BlackElo "2568"]
[TimeControl "180+1"]
[EndTime "9:46:03 PDT"]
[Termination "Kazmin_Semyon won by resignation"]

1. e4 {[%clk 0:03:00.9]} 1... e6 {[%clk 0:02:58.2]} 2. d4 {[%clk 0:02:58.1]}
2... d5 {[%clk 0:02:56.8]} 3. e5 {[%clk 0:02:58.6]} 3... c5 {[%clk 0:02:56.4]}
4. c3 {[%clk 0:02:59.2]} 4... Nc6 {[%clk 0:02:56.6]} 5. Nf3 {[%clk 0:02:59.8]}
5... Bd7 {[%clk 0:02:56.2]} 6. a3 {[%clk 0:03:00.2]} 6... c4 {[%clk 0:02:55.5]}
7. Nbd2 {[%clk 0:02:57.9]} 7... Na5 {[%clk 0:02:48.5]} 8. g3 {[%clk 0:02:57.4]}
8... Qb6 {[%clk 0:02:47.8]} 9. Bg2 {[%clk 0:02:55.5]} 9... Ne7 {[%clk
0:02:40.3]} 10. O-O {[%clk 0:02:55.5]} 10... h6 {[%clk 0:02:36.3]} 11. h4 {[%clk
0:02:55.8]} 11... O-O-O {[%clk 0:02:33.7]} 12. h5 {[%clk 0:02:43.6]} 12... Nec6
{[%clk 0:02:27.2]} 13. Nh2 {[%clk 0:02:32.4]} 13... Be7 {[%clk 0:02:24.5]} 14.
Kh1 {[%clk 0:02:28.2]} 14... f5 {[%clk 0:02:16.4]} 15. exf6 {[%clk 0:02:20]}
15... gxf6 {[%clk 0:02:13]} 16. f4 {[%clk 0:02:07.3]} 16... Rhg8 {[%clk
0:02:05.8]} 17. Qe1 {[%clk 0:02:05.9]} 17... f5 {[%clk 0:01:52.3]} 18. Ndf3
{[%clk 0:02:03.4]} 18... Nb3 {[%clk 0:01:51.3]} 19. Rb1 {[%clk 0:02:03]} 19...
Rg7 {[%clk 0:01:44.3]} 20. Be3 {[%clk 0:02:02.8]} 20... Rdg8 {[%clk 0:01:40]}
21. Bf2 {[%clk 0:02:02.7]} 21... Qd8 {[%clk 0:01:38]} 22. Nd2 {[%clk 0:01:52.8]}
22... Nca5 {[%clk 0:01:26.1]} 23. Nxb3 {[%clk 0:01:51.5]} 23... Nxb3 {[%clk
0:01:27]} 24. Qe2 {[%clk 0:01:52.3]} 24... Qe8 {[%clk 0:01:23.7]} 25. Bf3 {[%clk
0:01:51.2]} 25... Qf7 {[%clk 0:01:02.6]} 26. Rg1 {[%clk 0:01:49.1]} 26... Bd6
{[%clk 0:00:48.1]} 27. Rbe1 {[%clk 0:01:47.1]} 27... Kb8 {[%clk 0:00:46.9]} 28.
Nf1 {[%clk 0:01:36]} 28... Rg4 {[%clk 0:00:31.2]} 29. Nh2 {[%clk 0:01:26.9]}
29... Qxh5 {[%clk 0:00:25]} 30. Bxg4 {[%clk 0:01:27.1]} 30... fxg4 {[%clk
0:00:25.9]} 31. Rg2 {[%clk 0:01:15.2]} 31... Qf5 {[%clk 0:00:22.3]} 32. Kg1
{[%clk 0:01:14]} 32... h5 {[%clk 0:00:20.6]} 33. Be3 {[%clk 0:01:14.3]} 33...
Rg6 {[%clk 0:00:20.1]} 34. Nf1 {[%clk 0:01:13.4]} 34... Rf6 {[%clk 0:00:20.6]}
35. Nd2 {[%clk 0:01:11.7]} 35... Na5 {[%clk 0:00:16.7]} 36. Bf2 {[%clk
0:01:03.5]} 36... Be8 {[%clk 0:00:17]} 37. Nf1 {[%clk 0:01:03.4]} 37... Bg6
{[%clk 0:00:17.6]} 38. Ne3 {[%clk 0:01:03.9]} 38... Qe4 {[%clk 0:00:13.6]} 39.
Rh2 {[%clk 0:01:04.3]} 39... Nb3 {[%clk 0:00:12.6]} 40. Nf1 {[%clk 0:00:54.7]}
40... Qf5 {[%clk 0:00:08.9]} 41. Ne3 {[%clk 0:00:54.6]} 41... Qe4 {[%clk
0:00:09.3]} 42. Ng2 {[%clk 0:00:55.3]} 42... Qxe2 {[%clk 0:00:06.2]} 43. Rxe2
{[%clk 0:00:55.3]} 43... Nc1 {[%clk 0:00:06.8]} 44. Rd2 {[%clk 0:00:51.8]} 44...
Nd3 {[%clk 0:00:07.4]} 45. Be3 {[%clk 0:00:48.4]} 45... Be7 {[%clk 0:00:06.5]}
46. Nh4 {[%clk 0:00:48.5]} 46... Be4 {[%clk 0:00:06.1]} 47. Ng2 {[%clk
0:00:47.4]} 47... b6 {[%clk 0:00:05.1]} 48. Rxh5 {[%clk 0:00:47.2]} 48... b5
{[%clk 0:00:04.5]} 49. Nh4 {[%clk 0:00:44.2]} 49... a5 {[%clk 0:00:04.3]} 50.
Rh8+ {[%clk 0:00:41.8]} 50... Kc7 {[%clk 0:00:04.6]} 51. Rg8 {[%clk 0:00:42.4]}
51... b4 {[%clk 0:00:04.3]} 52. axb4 {[%clk 0:00:42.2]} 52... axb4 {[%clk
0:00:05.2]} 53. Rxg4 {[%clk 0:00:42.3]} 53... b3 {[%clk 0:00:03.6]} 54. Rg7
{[%clk 0:00:41.5]} 54... Kd8 {[%clk 0:00:03.9]} 55. f5 {[%clk 0:00:35.7]} 55...
exf5 {[%clk 0:00:03.9]} 56. Bg5 {[%clk 0:00:35.7]} 56... Re6 {[%clk 0:00:04.5]}
57. Bxe7+ {[%clk 0:00:36.1]} 57... Rxe7 {[%clk 0:00:05.4]} 58. Rxe7 {[%clk
0:00:36.7]} 58... Kxe7 {[%clk 0:00:06.3]} 59. Ng2 {[%clk 0:00:36.5]} 59... Bxg2
{[%clk 0:00:02.9]} 60. Kxg2 {[%clk 0:00:36.4]} 60... Kf6 {[%clk 0:00:03.6]} 61.
Kf3 {[%clk 0:00:36.4]} 61... Kg5 {[%clk 0:00:04.1]} 62. Rh2 {[%clk 0:00:36]}
62... Ne1+ {[%clk 0:00:04.4]} 63. Ke3 {[%clk 0:00:33.7]} 63... Kg4 {[%clk
0:00:04.3]} 64. Rh4+ {[%clk 0:00:20.5]} 64... Kxg3 {[%clk 0:00:04.6]} 65. Rf4
{[%clk 0:00:20.4]} 65... Ng2+ {[%clk 0:00:04.9]} 0-1

[Event "Early-Titled-Tuesday-Blitz-March-19-2024"]
[Site "Chess.com"]
[Date "2024.03.19"]
[Round "9"]
[White "Chessbard1972"]
[Black "sorch29"]
[Result "0-1"]
[WhiteElo "2322"]
[BlackElo "2493"]
[TimeControl "180+1"]
[EndTime "9:46:04 PDT"]
[Termination "sorch29 won on time"]

1. d4 {[%clk 0:03:00.9]} 1... Nf6 {[%clk 0:02:55.8]} 2. c4 {[%clk 0:02:59.8]}
2... g6 {[%clk 0:02:56.2]} 3. Nf3 {[%clk 0:02:59.7]} 3... d6 {[%clk 0:02:56.8]}
4. g3 {[%clk 0:02:59.8]} 4... Bg7 {[%clk 0:02:57.3]} 5. Bg2 {[%clk 0:03:00.3]}
5... O-O {[%clk 0:02:58]} 6. Nc3 {[%clk 0:03:00.8]} 6... c6 {[%clk 0:02:55.7]}
7. O-O {[%clk 0:03:00.3]} 7... Bf5 {[%clk 0:02:56.3]} 8. Ne1 {[%clk 0:02:59.7]}
8... e5 {[%clk 0:02:54.7]} 9. e4 {[%clk 0:02:58.1]} 9... Bg4 {[%clk 0:02:44.7]}
10. f3 {[%clk 0:02:57.2]} 10... exd4 {[%clk 0:02:30.6]} 11. Qxd4 {[%clk
0:02:56]} 11... Be6 {[%clk 0:02:15.9]} 12. Qd3 {[%clk 0:02:44.1]} 12... Na6
{[%clk 0:01:46]} 13. b3 {[%clk 0:02:39]} 13... Nc5 {[%clk 0:01:39.3]} 14. Qc2
{[%clk 0:02:34.7]} 14... a5 {[%clk 0:01:37.6]} 15. Bb2 {[%clk 0:02:34.1]} 15...
Qb6 {[%clk 0:01:37.5]} 16. Kh1 {[%clk 0:02:32.8]} 16... a4 {[%clk 0:01:26.4]}
17. Nxa4 {[%clk 0:02:08.7]} 17... Nxa4 {[%clk 0:01:26]} 18. bxa4 {[%clk
0:02:09.1]} 18... Bxc4 {[%clk 0:01:13.5]} 19. Qxc4 {[%clk 0:01:49.9]} 19... Qxb2
{[%clk 0:01:11.1]} 20. Nd3 {[%clk 0:01:50.2]} 20... Qa3 {[%clk 0:00:56.3]} 21.
Qb3 {[%clk 0:01:33.7]} 21... Rxa4 {[%clk 0:00:37.7]} 22. Rad1 {[%clk 0:01:23.9]}
22... Qxb3 {[%clk 0:00:34.5]} 23. axb3 {[%clk 0:01:23.5]} 23... Ra2 {[%clk
0:00:32.6]} 24. Rf2 {[%clk 0:01:16.9]} 24... Rfa8 {[%clk 0:00:32.2]} 25. Rxa2
{[%clk 0:01:10.1]} 25... Rxa2 {[%clk 0:00:33.1]} 26. f4 {[%clk 0:00:58.5]} 26...
Nd7 {[%clk 0:00:29.8]} 27. h3 {[%clk 0:00:52.6]} 27... Kf8 {[%clk 0:00:24.2]}
28. Nb4 {[%clk 0:00:46.8]} 28... Rb2 {[%clk 0:00:14.9]} 29. Rxd6 {[%clk
0:00:44.2]} 29... Ke7 {[%clk 0:00:13.9]} 30. Rd3 {[%clk 0:00:41.6]} 30... Nc5
{[%clk 0:00:14.1]} 31. Rf3 {[%clk 0:00:33]} 31... Rxb3 {[%clk 0:00:13.6]} 32.
Nc2 {[%clk 0:00:22.1]} 32... Rxf3 {[%clk 0:00:12.9]} 33. Bxf3 {[%clk 0:00:22]}
33... Bc3 {[%clk 0:00:12.7]} 34. Kg2 {[%clk 0:00:20.5]} 34... Ne6 {[%clk
0:00:12.2]} 35. Kf2 {[%clk 0:00:19.4]} 35... b5 {[%clk 0:00:11.5]} 36. Ke3
{[%clk 0:00:19]} 36... c5 {[%clk 0:00:12]} 37. Kd3 {[%clk 0:00:18.7]} 37... Bd4
{[%clk 0:00:10.2]} 38. f5 {[%clk 0:00:17.3]} 38... c4+ {[%clk 0:00:10.1]} 39.
Kd2 {[%clk 0:00:16]} 39... Be5 {[%clk 0:00:05.7]} 40. fxe6 {[%clk 0:00:15.6]}
40... Kxe6 {[%clk 0:00:06.1]} 41. g4 {[%clk 0:00:13.2]} 41... Kd6 {[%clk
0:00:06.1]} 42. Ne3 {[%clk 0:00:10.5]} 42... Kc5 {[%clk 0:00:06.3]} 43. Nd5
{[%clk 0:00:10]} 43... b4 {[%clk 0:00:06.8]} 44. Ke3 {[%clk 0:00:08.1]} 44... b3
{[%clk 0:00:06.6]} 45. Bd1 {[%clk 0:00:07.4]} 45... Kb5 {[%clk 0:00:03.6]} 46.
Nf4 {[%clk 0:00:03.4]} 46... Kb4 {[%clk 0:00:03.3]} 47. Ne2 {[%clk 0:00:02.9]}
47... c3 {[%clk 0:00:03.1]} 48. Kd3 {[%clk 0:00:03.2]} 48... c2 {[%clk
0:00:02.3]} 49. Bxc2 {[%clk 0:00:03.3]} 49... bxc2 {[%clk 0:00:03.2]} 50. Kxc2
{[%clk 0:00:03.9]} 50... Kc4 {[%clk 0:00:04.1]} 51. Kd2 {[%clk 0:00:03.6]} 51...
Kc5 {[%clk 0:00:03.7]} 52. Ke3 {[%clk 0:00:04]} 52... Kc4 {[%clk 0:00:04.2]} 53.
Ng1 {[%clk 0:00:03.5]} 53... f6 {[%clk 0:00:04.9]} 54. Nf3 {[%clk 0:00:04.4]}
54... Kc5 {[%clk 0:00:05.1]} 55. Nxe5 {[%clk 0:00:04.5]} 55... fxe5 {[%clk
0:00:05]} 56. h4 {[%clk 0:00:04.7]} 56... h6 {[%clk 0:00:04.9]} 57. Kd3 {[%clk
0:00:04.6]} 57... Kb4 {[%clk 0:00:04.9]} 58. g5 {[%clk 0:00:01.3]} 58... h5
{[%clk 0:00:04.3]} 59. Kd2 {[%clk 0:00:01.1]} 59... Kc4 {[%clk 0:00:04.5]} 0-1

[Event "Early-Titled-Tuesday-Blitz-March-19-2024"]
[Site "Chess.com"]
[Date "2024.03.19"]
[Round "9"]
[White "DenLaz"]
[Black "Hikaru"]
[Result "1/2-1/2"]
[WhiteElo "3113"]
[BlackElo "3281"]
[TimeControl "180+1"]
[EndTime "9:46:10 PDT"]
[Termination "Game drawn - insufficient material"]

1. d4 {[%clk 0:03:00.1]} 1... Nf6 {[%clk 0:02:59.1]} 2. c4 {[%clk 0:03:00.7]}
2... e6 {[%clk 0:02:59.2]} 3. Nf3 {[%clk 0:03:01.4]} 3... d5 {[%clk 0:02:59.4]}
4. g3 {[%clk 0:03:01.9]} 4... Bb4+ {[%clk 0:02:59]} 5. Bd2 {[%clk 0:03:01.9]}
5... Be7 {[%clk 0:02:59.1]} 6. Bg2 {[%clk 0:03:02.4]} 6... O-O {[%clk
0:02:58.8]} 7. O-O {[%clk 0:03:02.8]} 7... c6 {[%clk 0:02:59.4]} 8. Qc2 {[%clk
0:03:03.2]} 8... b6 {[%clk 0:02:59.3]} 9. Nc3 {[%clk 0:02:59.4]} 9... Ba6 {[%clk
0:02:55.2]} 10. cxd5 {[%clk 0:02:58.5]} 10... cxd5 {[%clk 0:02:53]} 11. Ne5
{[%clk 0:02:59.2]} 11... Bb7 {[%clk 0:02:53.2]} 12. Qa4 {[%clk 0:02:53.8]} 12...
Nfd7 {[%clk 0:02:51.1]} 13. Nd3 {[%clk 0:02:53.8]} 13... a6 {[%clk 0:02:43.8]}
14. Rfc1 {[%clk 0:02:52.6]} 14... Nc6 {[%clk 0:02:38.2]} 15. e3 {[%clk 0:02:50]}
15... Rc8 {[%clk 0:02:37]} 16. Ne2 {[%clk 0:02:47.7]} 16... Bd6 {[%clk
0:02:33.8]} 17. Qb3 {[%clk 0:02:36.2]} 17... Rc7 {[%clk 0:02:25.3]} 18. Nc3
{[%clk 0:02:14.1]} 18... Na5 {[%clk 0:02:22]} 19. Qd1 {[%clk 0:02:14.1]} 19...
Nc4 {[%clk 0:02:22.7]} 20. Be1 {[%clk 0:02:13.4]} 20... Be7 {[%clk 0:02:18.1]}
21. b3 {[%clk 0:02:04.8]} 21... Nd6 {[%clk 0:02:15.8]} 22. Na4 {[%clk
0:02:05.4]} 22... a5 {[%clk 0:02:13.8]} 23. Rxc7 {[%clk 0:02:03.9]} 23... Qxc7
{[%clk 0:02:14.7]} 24. Rc1 {[%clk 0:02:04.2]} 24... Qb8 {[%clk 0:02:15.3]} 25.
b4 {[%clk 0:01:49]} 25... axb4 {[%clk 0:01:23.5]} 26. Bxb4 {[%clk 0:01:49.9]}
26... Nf5 {[%clk 0:01:24]} 27. Bxe7 {[%clk 0:01:42.1]} 27... Nxe7 {[%clk
0:01:24.9]} 28. Nb4 {[%clk 0:01:39.8]} 28... Rc8 {[%clk 0:01:23.3]} 29. Bf1
{[%clk 0:01:39.5]} 29... Qd6 {[%clk 0:01:16.2]} 30. Rxc8+ {[%clk 0:01:36]} 30...
Nxc8 {[%clk 0:01:15.8]} 31. a3 {[%clk 0:01:34.2]} 31... Qc7 {[%clk 0:01:15.5]}
32. Bb5 {[%clk 0:01:27.3]} 32... Nf6 {[%clk 0:01:10.9]} 33. Qc2 {[%clk
0:01:26.6]} 33... Qxc2 {[%clk 0:01:10]} 34. Nxc2 {[%clk 0:01:27.5]} 34... Kf8
{[%clk 0:01:10.3]} 35. Bd3 {[%clk 0:01:23.2]} 35... Ke7 {[%clk 0:01:09.9]} 36.
f3 {[%clk 0:01:22.8]} 36... Bc6 {[%clk 0:01:10.1]} 37. Nc3 {[%clk 0:01:22.6]}
37... Nd6 {[%clk 0:01:10.7]} 38. Nb4 {[%clk 0:01:23.2]} 38... Bd7 {[%clk
0:01:10.8]} 39. Kf2 {[%clk 0:01:22.3]} 39... h5 {[%clk 0:01:10.1]} 40. h3 {[%clk
0:01:22.2]} 40... Nfe8 {[%clk 0:01:01.7]} 41. e4 {[%clk 0:01:17.7]} 41... dxe4
{[%clk 0:01:01.6]} 42. fxe4 {[%clk 0:01:18.6]} 42... Nc7 {[%clk 0:00:59.8]} 43.
e5 {[%clk 0:01:16.7]} 43... Nb7 {[%clk 0:00:58.5]} 44. h4 {[%clk 0:01:12.5]}
44... f6 {[%clk 0:00:55]} 45. Ke3 {[%clk 0:01:06.4]} 45... Be8 {[%clk 0:00:52]}
46. Be2 {[%clk 0:00:55.7]} 46... Na5 {[%clk 0:00:52.1]} 47. Bd3 {[%clk
0:00:47.4]} 47... Nb7 {[%clk 0:00:47.4]} 48. Ne2 {[%clk 0:00:46.5]} 48... g5
{[%clk 0:00:45.5]} 49. exf6+ {[%clk 0:00:34.2]} 49... Kxf6 {[%clk 0:00:46.4]}
50. Nc3 {[%clk 0:00:33.9]} 50... Nd6 {[%clk 0:00:44.5]} 51. Ne4+ {[%clk
0:00:34]} 51... Nxe4 {[%clk 0:00:44.9]} 52. Bxe4 {[%clk 0:00:34.9]} 52... Nb5
{[%clk 0:00:44.2]} 53. Nc2 {[%clk 0:00:22.9]} 53... Nd6 {[%clk 0:00:44.3]} 54.
Bd3 {[%clk 0:00:23.3]} 54... Bg6 {[%clk 0:00:42.1]} 55. Bxg6 {[%clk 0:00:22.9]}
55... Kxg6 {[%clk 0:00:43]} 56. hxg5 {[%clk 0:00:20.6]} 56... Kxg5 {[%clk
0:00:43.9]} 57. Kf3 {[%clk 0:00:20]} 57... Nf5 {[%clk 0:00:43.9]} 58. a4 {[%clk
0:00:20.2]} 58... Ne7 {[%clk 0:00:32.5]} 59. Ne3 {[%clk 0:00:18.9]} 59... Nf5
{[%clk 0:00:28.4]} 60. Nc2 {[%clk 0:00:19.1]} 60... Kg6 {[%clk 0:00:27.3]} 61.
Kf4 {[%clk 0:00:19.1]} 61... Kf6 {[%clk 0:00:27.3]} 62. g4 {[%clk 0:00:10.6]}
62... hxg4 {[%clk 0:00:23.7]} 63. Kxg4 {[%clk 0:00:11.5]} 63... Ne7 {[%clk
0:00:24.6]} 64. Kf4 {[%clk 0:00:11.1]} 64... Nd5+ {[%clk 0:00:24.6]} 65. Kf3
{[%clk 0:00:11]} 65... Nc3 {[%clk 0:00:25.2]} 66. Ne3 {[%clk 0:00:07.5]} 66...
Nxa4 {[%clk 0:00:23.3]} 67. d5 {[%clk 0:00:08.1]} 67... e5 {[%clk 0:00:23]} 68.
Ng4+ {[%clk 0:00:08.7]} 68... Kf5 {[%clk 0:00:22.3]} 69. Ne3+ {[%clk 0:00:09.3]}
69... Kf6 {[%clk 0:00:22.4]} 70. Ng4+ {[%clk 0:00:09.9]} 70... Ke7 {[%clk
0:00:15.9]} 71. Nxe5 {[%clk 0:00:10.4]} 71... Kd6 {[%clk 0:00:16.5]} 72. Nc4+
{[%clk 0:00:10.6]} 72... Kxd5 {[%clk 0:00:17.4]} 73. Nxb6+ {[%clk 0:00:11.5]}
1/2-1/2